Cogmind - Beta 11.1 @@@ ROGUE MODE // 2022.12.22 @ 13:14:51 Player: Richard Blunt Result: Destroyed by as-92692 with Assembled Gauss Rifle Performance ------------- Evolutions (3) 1500 Regions Visited (11) 2200 Robots Destroyed (153) 765 Value Destroyed (5110) 5110 Prototype IDs (41) 820 Alien Tech Used (0) 0 Bonus (3171) 3171 TOTAL SCORE: 13566 Bonus ------- High Alert Combat Kills 490 Follower Combat Kills 81 Aligned with FarCom 300 Met Imprinter 300 Destroyed Z-Imprinter 1000 Triggered Deep Caves Wall 500 Exposed GOLEM Chamber 500 Cogmind --------- Core Integrity 0/700 Matter 11/300 Energy 593/700 System Corruption 0% Temperature Cool (0) Movement Core (300) Ox5 Location -7/Deep Caves Parts ------- > --- POWER (1) -------- (None) > --- PROPULSION (4) --- (None) > --- UTILITY (5) ------ Experimental Heat Sink Zionite Biocell > --- WEAPON (3) ------- Advanced EMP Blaster Proton Missile Launcher Heavy Mace > --- INVENTORY (5) ---- Experimental Heat Sink Experimental Sensor Array Heavy Battle Rifle Gauss Cannon Precision Rocket Launcher Peak State ------------ > --- POWER ------------ Zionite Light DM Reactor > --- PROPULSION ------- Armored Treads Armored Treads Medium Treads Medium Treads > --- UTILITY ---------- Experimental Heat Sink Experimental Heat Sink Huge Storage Unit Zionite Weapon Casing Zionite Light Carapace > --- WEAPON ----------- Zionite Laser-S Zionite Laser-S Zionite Laser-S > --- INVENTORY -------- Zionite Light DM Reactor Medium Treads Experimental Heat Sink Zionite Biocell Zionite Biocell High-capacity Matter Pod Experimental Sensor Array Advanced Signal Interpreter 0b10 Decoder Chip [Looter] Zionite Weapon Casing Zionite Weapon Casing Zionite Weapon Casing Zionite Light Carapace Zionite Light Carapace Long-range Tractor Beam Zionite Laser-S Gauss Rifle Heavy Battle Rifle Gauss Cannon Advanced EMP Blaster Proton Missile Launcher Precision Rocket Launcher Precision Rocket Launcher Precision Rocket Launcher Heavy Mace [Rating: 80] Favorites ----------- Power Improved Deuterium Engine Engine Improved Deuterium Engine Power Core Nuclear Core Reactor Zionite Light DM Reactor Propulsion Medium Treads Treads Medium Treads Wheel Wheel Hover Unit Zionite Glidesys I Utility Huge Storage Unit Device Hardlight Generator Storage Huge Storage Unit Processor Advanced Targeting Computer Hackware Hacking Suite Protection Hardened Medium Armor Plating Weapon Improved Assault Rifle Energy Gun Zionite Laser-S Energy Cannon Plasma Cannon Ballistic Gun Improved Assault Rifle Ballistic Cannon Flak Cannon Launcher Precision Rocket Launcher Impact Weapon Heavy Mace Piercing Weapon CR-A16's Pointy Stick Build | -11 -10 -10 -10 -9 -8 -8 -7 -7 -7 -7 -7 ------- Run | Scr Mat Min Exi Min Mat Sto Fac Low Low Zio Dee Slots Evolved 6 | . . . . . 4 . 2 . . . . Power . | . . . . . . . . . . . . Propulsion 2 | . . . . . 2 . . . . . . Utility 3 | . . . . . 2 . 1 . . . . Weapon 1 | . . . . . . . 1 . . . . Parts Attached 306 | 7 16 3 1 6 70 39 45 10 17 32 60 Power 19 | 1 2 3 . 1 5 2 3 . . . 2 Engine 6 | 1 1 1 . 1 1 . 1 . . . . Core 12 | . 1 2 . . 4 2 2 . . . 1 Reactor 1 | . . . . . . . . . . . 1 Propulsion 59 | 2 4 . . 3 20 9 7 . 2 4 8 Treads 54 | 2 2 . . 2 19 9 7 . 2 4 7 Leg . | . . . . . . . . . . . . Wheel 4 | . 2 . . 1 1 . . . . . . Hover 1 | . . . . . . . . . . . 1 Flight . | . . . . . . . . . . . . Utility 135 | 2 5 . 1 2 23 12 26 7 7 21 29 Device 65 | 1 . . . . 7 10 21 6 6 6 8 Storage 14 | 1 3 . 1 . 4 . . . . 1 4 Processor 7 | . . . . . 2 . 2 . . 3 . Hackware 2 | . . . . . 1 . . . . 1 . Protection 47 | . 2 . . 2 9 2 3 1 1 10 17 Artifact . | . . . . . . . . . . . . Weapon 93 | 2 5 . . . 22 16 9 3 8 7 21 Energy Gun 9 | 1 1 . . . . 1 . . . . 6 Energy Cannon 1 | . . . . . 1 . . . . . . Ballistic Gun 37 | 1 3 . . . 8 9 3 1 5 2 5 Ballistic Cannon 15 | . 1 . . . 7 . 3 1 1 1 1 Launcher 14 | . . . . . 3 1 . . 1 2 7 Special Weapon . | . . . . . . . . . . . . Impact Weapon 16 | . . . . . 3 5 3 1 1 1 2 Slashing Weapon . | . . . . . . . . . . . . Piercing Weapon 1 | . . . . . . . . . . 1 . Special Melee Weapon . | . . . . . . . . . . . . Unidentified Prototypes 17 | . . . . . 1 3 . . . 5 8 Parts Lost 47 | . . . . 2 20 1 1 . . . 23 Power 3 | . . . . . 1 1 . . . . 1 Propulsion 17 | . . . . 2 8 . . . . . 7 Utility 19 | . . . . . 7 . . . . . 12 Weapon 8 | . . . . . 4 . 1 . . . 3 Highest Loss Streak 11 | . . . . 2 7 1 1 . . . 11 To Critical Strikes 1 | . . . . . . . . . . . 1 Average Slot Usage (%) 98 | . 99 100 100 100 99 99 99 100 99 98 95 Engine 3 | . 2 11 . 12 2 . 3 7 7 7 1 Core 3 | . 11 2 14 1 6 8 3 . . . . Reactor 1 | . . . . . . . . . . . 5 Treads 28 | . 17 14 14 15 34 35 30 30 29 30 29 Wheel 2 | . 10 14 14 12 1 . . . . . . Device 5 | . 8 . . . 10 9 7 7 7 1 6 Storage 9 | . 14 14 14 14 9 9 7 7 7 7 11 Processor 7 | . . . . . 2 9 15 15 15 13 2 Protection 11 | . 5 14 14 14 12 8 6 6 6 13 14 Energy Gun 1 | . 6 . . . . . . . . . 3 Ballistic Gun 11 | . 18 14 14 14 10 13 15 11 13 17 1 Ballistic Cannon 4 | . 3 14 14 14 6 1 4 6 3 . 1 Launcher 3 | . . . . . . . . . 1 . 14 Impact Weapon 1 | . . . . . 1 2 2 2 2 5 . Naked Turns . | . . . . . . . . . . . . Heaviest Build 136 | 15 53 53 53 63 117 109 115 118 119 136 136 Greatest Support 112 | 40 40 10 10 40 82 88 112 112 112 112 104 Greatest Overweight (x) 6 | . 5 5 5 6 3 1 1 1 1 1 5 Average Overweight (x) 1 | . 3 4 5 5 . 1 . . . . 1 Largest Inventory Capacity 25 | 8 20 20 20 20 25 25 25 25 25 25 25 Average Capacity 23 | 7 18 20 20 20 23 25 25 25 25 25 24 Most Carried 25 | 5 20 20 20 20 25 25 25 25 25 25 25 Average Carried 22 | 3 13 19 20 19 21 24 24 24 24 24 23 Final Capacity 25 | 8 20 20 20 20 25 25 25 25 25 25 5 Final Carried 25 | 5 19 20 20 20 25 24 25 25 25 24 5 Class Distribution -------------------- 77% | Mutant 8% | Scavenger-Mutant 5% | Skirmisher 3% | Tank Dominant Class ---------------- Mutant | -10/Materials Mutant | -10/Mines Mutant | -10/Exiles Mutant | -9/Mines Scavenger-Mutant | -8/Materials Mutant | -8/Storage Tank | -7/Factory Skirmisher | -7/Lower Caves Mutant | -7/Lower Caves Mutant | -7/Zion Mutant | -7/Deep Caves Resources | -11 -10 -10 -10 -9 -8 -8 -7 -7 -7 -7 -7 ----------- Run | Scr Mat Min Exi Min Mat Sto Fac Low Low Zio Dee Matter Collected 7216 | 318 247 415 10 204 1876 1228 942 267 336 298 1075 Remotely 1260 | . . . . . 183 305 283 42 58 10 379 Salvage Created 6783 | 213 328 . . 239 2104 1431 733 155 192 . 1388 Parts 330 | 10 27 . . 6 110 88 35 2 11 . 41 Haulers Intercepted 8 | . 1 . . . 2 4 1 . . . . Recyclers Shooed 7 | . . . . 1 1 5 . . . . . Parts Field Recycled . | . . . . . . . . . . . . Retrieved Matter . | . . . . . . . . . . . . Parts Self-Destructed 6 | . . . . . . . . 1 4 1 . Prevented 1 | . . . . . . . . 1 . . . Kills | -11 -10 -10 -10 -9 -8 -8 -7 -7 -7 -7 -7 ------- Run | Scr Mat Min Exi Min Mat Sto Fac Low Low Zio Dee Combat Hostiles Destroyed 162 | . 11 . . 3 53 22 13 1 2 . 57 Melee 4 | . . . . . . . . . . . 4 Guns 70 | . 7 . . 2 26 17 9 1 1 . 7 Cannons 39 | . 4 . . 1 23 5 4 . . . 2 AOE 45 | . . . . . 4 . . . 1 . 40 Classes Destroyed 22 | 3 4 . . 2 5 1 1 1 1 . 4 Worker 12 | 1 . . . . 5 3 3 . . . . Builder 1 | . . . . . . 1 . . . . . Tunneler 6 | 5 . . . . 1 . . . . . . Hauler 8 | . 1 . . . 2 4 1 . . . . Recycler 9 | 1 . . . 2 2 3 1 . . . . Minesweeper 1 | . . . . . . . . 1 . . . Operator 1 | . . . . . 1 . . . . . . Watcher 3 | . 1 . . . 1 1 . . . . . Swarmer 15 | . 6 . . . 5 3 . . 1 . . Cutter 3 | . . . . . 3 . . . . . . Grunt 51 | . 5 . . 1 30 7 8 . . . . Brawler 3 | . . . . 1 2 . . . . . . Duelist 1 | . . . . . 1 . . . . . . Sentry 22 | . . . . 1 9 10 2 . . . . Hunter 6 | . . . . . 2 2 . 1 1 . . Programmer 3 | . . . . . . . 3 . . . . Heavy 1 | . . . . . 1 . . . . . . Z-Technician 5 | . . . . . . . . . . . 5 Z-Light 11 | . . . . . . . . . . . 11 Samaritan 3 | . . . . . . . . . 3 . . Assembler 1 | . . . . . . . . . . . 1 Assembled 43 | . . . . . . . . . . . 43 Golem 2 | . . . . . . . . . . . 2 Best Kill Streak 38 | 2 3 . . 2 7 5 3 1 1 . 38 Combat Bots Only 37 | . 3 . . 2 5 4 3 1 1 . 37 Max Kills in Single Turn 19 | 1 1 . . 1 2 2 2 1 1 . 19 Gunslinging . | . . . . . . . . . . . . Exploded 19 | . . . . . 2 . . . 1 . 19 Melee 1 | . . . . . . . . . . . 1 Uniques/NPCs Destroyed 1 | . . . . . . . . . . . 1 Z-Imprinter (-7/Deep Caves) Combat | -11 -10 -10 -10 -9 -8 -8 -7 -7 -7 -7 -7 -------- Run | Scr Mat Min Exi Min Mat Sto Fac Low Low Zio Dee Damage Taken 12088 | . 541 13 . 255 4014 825 954 27 53 . 5406 Core 1201 | . 87 . . 15 220 166 84 . . . 629 Absorbed by Shields 1252 | . . . . . 760 256 212 8 16 . . Redirected to Shielding 635 | . . . . . . . . . . . 635 Regen/Repaired (Parts) 930 | . 66 . . . 372 279 213 . . . . Core Remaining (%) 62 | 100 . . . 59 . 29 . . . . . Volleys Fired 477 | 16 50 3 1 21 192 73 43 5 6 . 67 Largest 3 | 2 2 2 2 2 2 2 3 3 3 . 3 Hottest 120 | 70 70 55 55 55 88 69 92 92 71 . 120 Shots Fired 978 | 32 100 6 2 42 368 147 129 11 12 . 129 Gun 703 | 32 85 3 1 21 248 117 112 6 9 . 69 Cannon 223 | . 15 3 1 21 115 30 17 5 . . 16 Launcher 52 | . . . . . 5 . . . 3 . 44 Special . | . . . . . . . . . . . . Kinetic 864 | 16 82 6 2 42 357 147 129 11 9 . 63 Thermal 62 | 16 18 . . . 6 . . . . . 22 Explosive 37 | . . . . . 5 . . . 3 . 29 Electromagnetic 15 | . . . . . . . . . . . 15 Robot Hit Streak 26 | 7 5 2 . 12 16 18 26 5 12 . 14 Robot Miss Streak 7 | 3 3 3 . 5 5 4 2 2 2 . 7 Penetration Max 1 | . . . . . . . . . . . 1 Secondary Targets 4 | . 1 . . . 2 . 1 . . . . Max Gunslinging Chain 1 | . 1 . . . 1 . 1 . . . . Shots Hit Robots 706 | 16 59 2 . 30 281 116 102 9 11 . 80 Core Hits 544 | 8 23 1 . 9 200 72 43 5 4 . 179 Critical Kills 2 | . . . . . 1 . 1 . . . . Critical Parts Destroyed 6 | . 1 . . . 1 1 . 2 1 . . Critical Strikes 13 | 2 2 . . 1 2 1 1 2 1 . 1 Burn 2 | 2 . . . . . . . . . . . Destroy 5 | . 1 . . . 2 1 1 . . . . Blast 3 | . 1 . . 1 . . . . . . 1 Smash 3 | . . . . . . . . 2 1 . . Melee Attacks 77 | . . . . . 4 18 14 5 6 10 20 Impact 77 | . . . . . 4 18 14 5 6 10 20 Slashing . | . . . . . . . . . . . . Piercing . | . . . . . . . . . . . . Sneak Attacks 10 | . . . . . . 1 . 1 3 . 5 Combat Hostiles . | . . . . . . . . . . . . Follow-up Attacks . | . . . . . . . . . . . . Damage Inflicted 19498 | 193 752 30 . 467 5141 2142 1876 359 498 . 8040 Guns 7601 | 193 596 11 . 230 2615 1509 1412 44 66 . 925 Cannons 3633 | . 156 19 . 237 2141 494 327 41 . . 218 Explosions 6436 | . . . . . 364 . . . 149 . 5923 Melee 1655 | . . . . . . 72 59 274 283 . 967 Ramming 173 | . . . . . 21 67 78 . . . 7 Kinetic 10351 | 56 616 30 . 467 4605 2003 1739 85 66 . 684 Thermal 883 | 137 136 . . . 151 . . . . . 459 Explosive 5756 | . . . . . 364 . . . 149 . 5243 Electromagnetic 680 | . . . . . . . . . . . 680 Impact 1655 | . . . . . . 72 59 274 283 . 967 Slashing . | . . . . . . . . . . . . Piercing . | . . . . . . . . . . . . Highest Corruption 4 | . . . . . 2 4 3 3 . . . Average Corruption 2 | . . . . . 2 3 2 2 . . . Corruption Purged 3 | . . . . . . . . 3 . . . Corruption Blocked . | . . . . . . . . . . . . Effects 81 | . . . . . 27 35 14 5 . . . Message Errors 13 | . . . . . 4 5 3 1 . . . Matter Fused 23 | . . . . . 8 11 4 . . . . Heat Flow Errors 9 | . . . . . 1 5 2 1 . . . Energy Discharges 17 | . . . . . 7 6 3 1 . . . Data Loss (minor) 11 | . . . . . 4 5 1 1 . . . Data Loss (major) 4 | . . . . . 1 1 1 1 . . . Misfires 1 | . . . . . . 1 . . . . . Alerts 1 | . . . . . . 1 . . . . . Weapon Failures 2 | . . . . . 2 . . . . . . Overload Shots . | . . . . . . . . . . . . Overflow Damage 1285 | . . . . . 6 40 9 262 278 . 690 Projectiles 11 | . . . . . 6 . . . . . 5 Explosions 218 | . . . . . . . . . . . 218 Melee 1056 | . . . . . . 40 9 262 278 . 467 Knockbacks 75 | . 3 1 . 3 44 10 9 1 . . 4 Impact 5 | . . . . . . . 1 1 . . 3 Kinetic 64 | . 3 1 . 3 40 9 7 . . . 1 Secondary 6 | . . . . . 4 1 1 . . . . Self-Inflicted Damage 336 | . . . . . 71 . . . . . 265 Shots 10 | . . . . . 2 . . . . . 8 Rammed 13 | . . . . . 2 8 3 . . . . Targets Rammed 21 | . . . . . 5 10 5 . . . 1 Kicked . | . . . . . . . . . . . . Crushed 8 | . . . . . 3 2 2 . . . 1 Highest Temperature 575 | 36 180 12 9 248 362 281 231 226 9 . 575 Average Temperature 88 | 12 42 5 6 79 91 73 32 63 5 . 223 Received Heat Transfer 3668 | . 174 9 . 117 1535 349 214 . . . 1270 Effects 21 | . . . . . 2 . . . . . 19 Shutdowns 5 | . . . . . 2 . . . . . 3 Energy Bleed 1 | . . . . . . . . . . . 1 Interference 9 | . . . . . . . . . . . 9 Matter Decay 1 | . . . . . . . . . . . 1 Short Circuit 4 | . . . . . . . . . . . 4 Damage (minor) 1 | . . . . . . . . . . . 1 Siege Activations . | . . . . . . . . . . . . Robots Corrupted 3 | . . . . . . . . . . . 3 Combat Hostiles 3 | . . . . . . . . . . . 3 Parts Fried 14 | . . . . . . 1 . 2 2 . 9 Impact Corruptions 43 | . . . . . . 3 1 5 18 . 16 Robots Melted . | . . . . . . . . . . . . Combat Hostiles . | . . . . . . . . . . . . Parts Melted 3 | 1 . . . . . . . . . . 2 Heat Transferred 1854 | 555 407 . . . 300 . . . . . 592 Parts Sabotaged . | . . . . . . . . . . . . Parts Stolen . | . . . . . . . . . . . . Parts Stripped . | . . . . . . . . . . . . Power Chain Reactions . | . . . . . . . . . . . . Missiles Intercepted . | . . . . . . . . . . . . Alert | -11 -10 -10 -10 -9 -8 -8 -7 -7 -7 -7 -7 ------- Run | Scr Mat Min Exi Min Mat Sto Fac Low Low Zio Dee Peak Influence 823 | 35 208 127 . 90 823 709 382 . . . . Initial 347 | . 22 81 . . . 347 220 . . . . Average 250 | 15 96 54 . 75 334 437 192 . . . . Maximum Alert Level 3 | . 1 . . . 3 3 1 . . . . Low Security (%) 58 | 100 98 100 . 100 48 . 68 . . . . Level 1 16 | . 1 . . . 6 42 31 . . . . Level 2 22 | . . . . . 35 57 . . . . . Level 3 3 | . . . . . 9 . . . . . . Level 4 . | . . . . . . . . . . . . Level 5 . | . . . . . . . . . . . . High Security . | . . . . . . . . . . . . Max Security . | . . . . . . . . . . . . Sterilizations 1 | . . . . . 1 . . . . . . Squads Dispatched 27 | . 3 1 . . 11 5 7 . . . . Investigation 8 | . 2 1 . . 4 1 . . . . . Extermination 4 | . . . . . . . 4 . . . . Reinforcement 10 | . 1 . . . 3 3 3 . . . . Assault 1 | . . . . . 1 . . . . . . Garrison 4 | . . . . . 3 1 . . . . . Intercept . | . . . . . . . . . . . . Searches Triggered . | . . . . . . . . . . . . Construction Impeded 1 | . . . . . . 1 . . . . . Haulers Reinforced 1 | . . . . . . . 1 . . . . Active Scanning Responses . | . . . . . . . . . . . . Cargo Convoy Interrupts . | . . . . . . . . . . . . Stealth | -11 -10 -10 -10 -9 -8 -8 -7 -7 -7 -7 -7 --------- Run | Scr Mat Min Exi Min Mat Sto Fac Low Low Zio Dee Distress Signals 6 | . . . . . 3 3 . . . . . Communications Jammed . | . . . . . . . . . . . . Distress Signals . | . . . . . . . . . . . . Times Spotted 254 | . 19 6 . 4 74 40 20 1 4 . 86 Peak Tracking Total 47 | . 3 3 9 2 7 5 4 1 3 . 47 Tactical Retreats 21 | . . . . . 3 10 . . 1 . 7 Traps | -11 -10 -10 -10 -9 -8 -8 -7 -7 -7 -7 -7 ------- Run | Scr Mat Min Exi Min Mat Sto Fac Low Low Zio Dee Traps Triggered 9 | . 2 . . . 1 3 3 . . . . Indirectly . | . . . . . . . . . . . . Trap Hack Attempts . | . . . . . . . . . . . . Triggered . | . . . . . . . . . . . . Disarmed . | . . . . . . . . . . . . Reprogrammed . | . . . . . . . . . . . . Reused . | . . . . . . . . . . . . Traps Extracted . | . . . . . . . . . . . . Installed . | . . . . . . . . . . . . Triggered 2 | . . . . . . . . . 2 . . Most Traps Carried 1 | . . . . . . . . 1 . . . Machines | -11 -10 -10 -10 -9 -8 -8 -7 -7 -7 -7 -7 ---------- Run | Scr Mat Min Exi Min Mat Sto Fac Low Low Zio Dee Machines Disabled 14 | . 1 2 1 . 4 2 . . . . 4 Max in Single Turn 1 | . 1 . 1 . 1 1 . . . . 1 Garrison Access 1 | . . . . . 1 . . . . . . Machines Sabotaged . | . . . . . . . . . . . . Garrisons Compromised . | . . . . . . . . . . . . Overloaded Fab Kills . | . . . . . . . . . . . . Hacking | -11 -10 -10 -10 -9 -8 -8 -7 -7 -7 -7 -7 --------- Run | Scr Mat Min Exi Min Mat Sto Fac Low Low Zio Dee Machines Accessed 32 | . 6 1 2 . 10 10 3 . . . . Terminals 19 | . 3 . . . 6 8 2 . . . . Fabricators . | . . . . . . . . . . . . Repair Stations 6 | . 1 . . . 2 2 1 . . . . Recycling Units 2 | . 2 . . . . . . . . . . Scanalyzers 1 | . . . . . 1 . . . . . . Garrison Access 1 | . . . . . 1 . . . . . . Total Hacks 86 | . 15 1 2 . 31 28 9 . . . . Successful 50 | . 11 1 2 . 15 16 5 . . . . Failed 36 | . 4 . . . 16 12 4 . . . . Catastrophic 6 | . . . . . 2 4 . . . . . Database Lockouts . | . . . . . . . . . . . . Manual 40 | . 9 . 1 . 17 10 2 . . 1 . Terminals 54 | . 10 . . . 21 20 3 . . . . Fabricators . | . . . . . . . . . . . . Repair Stations 21 | . 3 . . . 4 8 6 . . . . Recycling Units 2 | . 2 . . . . . . . . . . Scanalyzers 4 | . . . . . 4 . . . . . . Garrison Access 2 | . . . . . 2 . . . . . . Terminal Hacks 26 | . 4 1 2 . 8 10 1 . . . . Record 2 | . . . 1 . 1 . . . . . . Robot Analysis 4 | . 2 . . . 2 . . . . . . Open Door 4 | . . 1 . . . 3 . . . . . Branch Access Points 1 | . . . . . 1 . . . . . . Alert Level 3 | . . . . . 1 2 . . . . . Unreport Threat 3 | . . . . . 1 2 . . . . . Locate Traps 6 | . 1 . . . 2 2 1 . . . . Zone Layout 2 | . 1 . . . . 1 . . . . . EX-Prototype ID Bank 1 | . . . 1 . . . . . . . . Fabricator Hacks . | . . . . . . . . . . . . Repair Station Hacks 15 | . 2 . . . 4 6 3 . . . . Scan Component 8 | . 1 . . . 2 3 2 . . . . Repair 7 | . 1 . . . 2 3 1 . . . . Recycling Unit Hacks . | . . . . . . . . . . . . Scanalyzer 2 | . . . . . 2 . . . . . . Insert Component 1 | . . . . . 1 . . . . . . Analyze 1 | . . . . . 1 . . . . . . Garrison Access Hacks 1 | . . . . . 1 . . . . . . Seal Access 1 | . . . . . 1 . . . . . . Unauthorized Hacks 6 | . 5 . . . . . 1 . . . . Terminals 4 | . 3 . . . . . 1 . . . . Assimilate 1 | . 1 . . . . . . . . . . Botnet 3 | . 2 . . . . . 1 . . . . Fabricators . | . . . . . . . . . . . . Repair Stations . | . . . . . . . . . . . . Recycling Units 2 | . 2 . . . . . . . . . . Tunnel 2 | . 2 . . . . . . . . . . Scanalyzers . | . . . . . . . . . . . . Garrison Access . | . . . . . . . . . . . . Data Cores Recovered 1 | . . . . . 1 . . . . . . Used 1 | . . . . . 1 . . . . . . Hacking Detections 23 | . 4 . . . 9 8 2 . . . . Full Trace Events 4 | . 1 . . . 3 . . . . . . Feedback Events . | . . . . . . . . . . . . Feedback Blocked . | . . . . . . . . . . . . Robot Schematics Acquired 4 | . . . . . . . . . . 4 . Robots Built . | . . . . . . . . . . . . Authchips . | . . . . . . . . . . . . Time . | . . . . . . . . . . . . Total Robot Build Rating . | . . . . . . . . . . . . Part Schematics Acquired 16 | . . . . . 1 . . . . 15 . Parts Built . | . . . . . . . . . . . . Authchips . | . . . . . . . . . . . . Time . | . . . . . . . . . . . . Total Part Build Rating . | . . . . . . . . . . . . Parts Repaired 7 | . 1 . . . 2 3 1 . . . . Time 305 | . 26 . . . 76 184 19 . . . . Parts Recycled . | . . . . . . . . . . . . Recycled Matter . | . . . . . . . . . . . . Retrieved Matter . | . . . . . . . . . . . . Retrieved Components . | . . . . . . . . . . . . Parts Scanalyzed 1 | . . . . . 1 . . . . . . Part Schematics Acquired 1 | . . . . . 1 . . . . . . Parts Damaged . | . . . . . . . . . . . . Bothacking | -11 -10 -10 -10 -9 -8 -8 -7 -7 -7 -7 -7 ------------ Run | Scr Mat Min Exi Min Mat Sto Fac Low Low Zio Dee Used RIF Installer . | . . . . . . . . . . . . Robots Hacked . | . . . . . . . . . . . . Non-combat . | . . . . . . . . . . . . Combat . | . . . . . . . . . . . . Robot Hacks Applied . | . . . . . . . . . . . . Relay Couplers Released . | . . . . . . . . . . . . Fabnet Peak Effective % . | . . . . . . . . . . . . Robots Rewired . | . . . . . . . . . . . . Allies Hacked . | . . . . . . . . . . . . Hacks Repelled . | . . . . . . . . . . . . Allies | -11 -10 -10 -10 -9 -8 -8 -7 -7 -7 -7 -7 -------- Run | Scr Mat Min Exi Min Mat Sto Fac Low Low Zio Dee Total Allies 5 | . 1 4 . . . . . . . . . Largest Group 4 | . 1 4 2 . . . . . . . . Highest-Rated Group 65 | . 10 65 41 . . . . . . . . Highest-Rated Ally 31 | . 10 31 31 . . . . . . . . Total Orders 6 | . . . . . . 6 . . . . . EXPLORE 6 | . . . . . . 6 . . . . . Ally Attacks 26 | . . 26 . . . . . . . . . Total Damage 261 | . . 261 . . . . . . . . . Kills 5 | . . 5 . . . . . . . . . Allies Corrupted . | . . . . . . . . . . . . Allies Melted . | . . . . . . . . . . . . Intel | -11 -10 -10 -10 -9 -8 -8 -7 -7 -7 -7 -7 ------- Run | Scr Mat Min Exi Min Mat Sto Fac Low Low Zio Dee Robot Analysis Total 4 | . 2 . . . 2 . . . . . . Derelict Logs Recovered 5 | . . 2 . 1 . . . . . 2 . Drone Launches 9 | . . . . . . 9 . . . . . Drone Recoveries 3 | . . . . . . 3 . . . . . Exploration | -11 -10 -10 -10 -9 -8 -8 -7 -7 -7 -7 -7 ------------- Run | Scr Mat Min Exi Min Mat Sto Fac Low Low Zio Dee Turns Passed 21257 | 231 1119 1048 768 432 3118 1854 1840 969 1074 3928 4876 Spaces Moved 9101 | 106 579 661 492 206 1091 556 832 491 520 1760 1807 Core 7 | 1 . . . . . . . . . . 6 Treads 7254 | 105 162 . . 13 1014 556 832 491 520 1760 1801 Legs . | . . . . . . . . . . . . Wheels 1840 | . 417 661 492 193 77 . . . . . . Hover . | . . . . . . . . . . . . Flight . | . . . . . . . . . . . . Fastest Speed 50 | 50 110 140 155 155 125 225 160 160 160 160 242 Average Speed 201 | 158 151 154 155 170 205 237 177 175 190 216 244 Slowest Speed 320 | 160 160 155 155 240 320 243 240 240 240 250 300 Overloaded Moves . | . . . . . . . . . . . . Propulsion Burnouts . | . . . . . . . . . . . . Robots Hopped . | . . . . . . . . . . . . Cave-ins Triggered 1 | . . . . . . . . . . . 1 Exploration Rate (%) 65 | 8 89 97 72 38 84 93 19 51 58 88 89 Regions Visited 11 Branch Regions 8 Pre-discovered Areas 9 | . 2 3 1 . . . . . . 3 . Known Exits Taken 4 | . . . . . 1 . 1 1 1 . . Unknown Exits Taken 7 | 1 1 1 1 1 . 1 . . . 1 . Scrap Searched 12 | . . 1 . . . . . 4 4 3 . Spaces Dug 31 | . . . . . 3 12 9 3 2 2 . Terrain Destroyed 247 | . . . . . 16 12 9 3 59 2 146 Melee 30 | . . . . . 3 12 9 2 2 2 . Projectile 7 | . . . . . . . . 1 . . 6 AOE 210 | . . . . . 13 . . . 57 . 140 Terrain Rammed . | . . . . . . . . . . . . Walls Destroyed . | . . . . . . . . . . . . Machines Disabled . | . . . . . . . . . . . . Actions | -11 -10 -10 -10 -9 -8 -8 -7 -7 -7 -7 -7 --------- Run | Scr Mat Min Exi Min Mat Sto Fac Low Low Zio Dee Total 10933 | 133 718 681 496 246 1592 896 1059 580 577 1857 2098 Wait 701 | . 50 4 2 4 152 171 104 64 18 37 95 Move 9089 | 105 578 660 491 205 1090 555 831 490 519 1759 1806 Hop . | . . . . . . . . . . . . Pick Up 123 | 5 15 5 . 5 45 10 5 2 4 2 25 Fast Attach 61 | 7 6 2 . 1 7 12 2 2 3 14 5 Attach 57 | . 3 . . 2 24 3 3 1 . 2 19 Detach 17 | . 3 . . . 3 . 1 . . 5 5 Swap 188 | . 7 1 1 3 39 24 40 7 14 16 36 Drop 121 | . 6 6 1 5 31 20 11 4 7 12 18 Fire 477 | 16 50 3 1 21 192 73 43 5 6 . 67 Melee 77 | . . . . . 4 18 14 5 6 10 20 Ram . | . . . . . . . . . . . . Kick . | . . . . . . . . . . . . Crush 21 | . . . . . 5 10 5 . . . 1 Escape Stasis 1 | . . . . . . . . . . . 1 Rewire . | . . . . . . . . . . . . Trap . | . . . . . . . . . . . . Miscellaneous . | . . . . . . . . . . . . Route ------- -11/Scrapyard -10/Materials (discovered 5 exits: [*Mat x3] / *Min x2) -10/Mines (discovered 3 exits: [*Mat x2] / *Exi) -10/Exiles (discovered 2 exits: [*Min x2]) -9/Mines (discovered 2 exits: *Mat x2) -8/Materials (discovered 4 exits: *Fac x3 / *Sto) -8/Storage -7/Factory -7/Lower Caves -7/Lower Caves (discovered 2 exits: *Fac / *Zio) -7/Zion (discovered 2 exits: [*Dee] / *Pro) -7/Deep Caves (discovered 1 exit: [*Pro]) History --------- Turn | Location | Event 23 | -11/Scrapyard | Discovered new exit (range 13) 232 | -11/Scrapyard | Entered Materials 311 | -10/Materials | Build established: Mutant 478 | -10/Materials | Repaired Lgt. Treads 485 | -10/Materials | Discovered new exit (range 9) 646 | -10/Materials | Discovered new exit (range 5) 865 | -10/Materials | Discovered new exit (range 15) 1018 | -10/Materials | Discovered new exit (range 7) 1319 | -10/Materials | Discovered new exit (range 17) 1351 | -10/Materials | Entered Mines 1351 | -10/Mines | Accompanied by 1 ally 1362 | -10/Mines | Assisted by bots powering up and referring to "LRC-V3" 1401 | -10/Mines | Escorted by a lone wolf Derelict 1421 | -10/Mines | Learned location of Storage (-8) 1460 | -10/Mines | Found a damaged Exp. Sensor Array with a note attached 1463 | -10/Mines | Found Prototype Device 1478 | -10/Mines | Learned location of Zion (-7) 1546 | -10/Mines | Discovered new exit (range 3) 1735 | -10/Mines | Deemed a non-threat by the Exiles lab entrance 1948 | -10/Mines | Discovered new exit (range 9) 2205 | -10/Mines | Met a Derelict shopkeep closing up shop 2389 | -10/Mines | Discovered new exit (range 5) 2399 | -10/Mines | Entered Exiles 2399 | -10/Exiles | Accompanied by 2 allies 2423 | -10/Exiles | Discovered new exit (range 14) 2465 | -10/Exiles | Met 8R-AWN 2486 | -10/Exiles | Met EX-HEX 2585 | -10/Exiles | Met EX-DEC 2700 | -10/Exiles | Discovered new exit (range 11) 2823 | -10/Exiles | Met EX-BIN 2844 | -10/Exiles | Aligned with FarCom system 2846 | -10/Exiles | Given EX-Vault access code 2883 | -10/Exiles | Opened EX-Vault 2916 | -10/Exiles | Warned to stay clear of 0b10 Research branches 3128 | -10/Exiles | Attacked by the Exiles 3167 | -10/Exiles | Entered Mines 3510 | -9/Mines | Discovered new exit (range 3) 3550 | -9/Mines | Discovered new exit (range 8) 3554 | -9/Mines | Learned Materials machine intel 3599 | -9/Mines | Entered Materials 3599 | -8/Materials | Evolved 4 slots: Propulsion x2, Utility x2 3600 | -8/Materials | Loaded intel: 48 machine locations 3860 | -8/Materials | Lost 5 parts (2n3u) 4095 | -8/Materials | Discovered new exit (range 16) 4109 | -8/Materials | Build established: Scavenger-Mutant 4294 | -8/Materials | Discovered new exit (range 12) 4550 | -8/Materials | Repaired Hrd. Medium Armor Plating 4778 | -8/Materials | Discovered new exit (range 14) 4793 | -8/Materials | Identified exit to Storage 5111 | -8/Materials | Garrison activated, responded to threat 5375 | -8/Materials | Lost 4 parts (2n2u) 5563 | -8/Materials | Discovered new exit (range 11) 5570 | -8/Materials | Build established: Mutant 5770 | -8/Materials | Lost 7 parts (1p4n1u1w) 5964 | -8/Materials | Repaired Hrd. Medium Armor Plating 6360 | -8/Materials | Identified Exp. Sensor Array 6399 | -8/Materials | First assault squad dispatched 6474 | -8/Materials | Sterilization system engaged 6474 | -8/Materials | Non-combat units ordered to evacuate 6574 | -8/Materials | Combat units ordered to evacuate 6717 | -8/Materials | Entered Storage 6856 | -8/Storage | Repaired Exp. Sensor Array 7610 | -8/Storage | Core integrity fell below 50% 8037 | -8/Storage | Repaired Arm. Treads 8077 | -8/Storage | Repaired Hrd. Medium Armor Plating 8451 | -8/Storage | Garrison activated, responded to threat 8513 | -8/Storage | Discovered new exit (range 16) 8571 | -8/Storage | Entered Factory 8571 | -7/Factory | Evolved 2 slots: Utility x1, Weapon x1 8899 | -7/Factory | Repaired Hrd. Medium Armor Plating 9793 | -7/Factory | Discovered new exit (range 14) 9821 | -7/Factory | Identified exit to Lower Caves 10154 | -7/Factory | Build established: Tank 10411 | -7/Factory | Entered Lower Caves 10730 | -7/Lower Caves | Build established: Skirmisher 11223 | -7/Lower Caves | Discovered new exit (range 6) 11235 | -7/Lower Caves | Identified exit to Lower Caves 11290 | -7/Lower Caves | Build established: Mutant 11380 | -7/Lower Caves | Entered another Lower Caves area 11535 | -7/Lower Caves | Discovered new exit (range 10) 11554 | -7/Lower Caves | Identified exit to Factory 12255 | -7/Lower Caves | Discovered new exit (range 15) 12276 | -7/Lower Caves | Identified exit to Zion 12454 | -7/Lower Caves | Entered Zion 12511 | -7/Zion | Found CR-A16's Pointy Stick 12555 | -7/Zion | Discovered new exit (range 15) 12561 | -7/Zion | Learned Factory terminal intel 12577 | -7/Zion | Identified exit to Proximity Caves 12809 | -7/Zion | Learned Factory security intel 12825 | -7/Zion | Learned location of Warlord (-4) 12935 | -7/Zion | Found Prototype Device 12935 | -7/Zion | Identified Mobile Refinery Mk. CCLXVII 13133 | -7/Zion | Received a hallucinogenic algorithm 13274 | -7/Zion | Found Prototype Device 13274 | -7/Zion | Identified Bomb Factory No. 2 13425 | -7/Zion | Found Prototype Processor 13425 | -7/Zion | Identified Exp. Terrain Scan Processor 13430 | -7/Zion | Found Prototype Hackware 13430 | -7/Zion | Identified Exp. System Shield 13434 | -7/Zion | Found Prototype Processor 13434 | -7/Zion | Identified Exp. Melee Analysis Suite 14039 | -7/Zion | Learned location of Armory (-4) 15492 | -7/Zion | Discovered new exit (range 5) 15494 | -7/Zion | Saw the warning signs outside the Deep Caves entrance 16382 | -7/Zion | Entered Deep Caves 16996 | -7/Deep Caves | Attacked by Z-Imprinter 17003 | -7/Deep Caves | Destroyed Z-Imprinter 17063 | -7/Deep Caves | Found Prototype Protection 17064 | -7/Deep Caves | Identified Zio. Weapon Casing 17282 | -7/Deep Caves | Z-Facility disabled 17506 | -7/Deep Caves | Lost 4 parts (3u1w) 17596 | -7/Deep Caves | Found Zio. Weapon Casing 17650 | -7/Deep Caves | Found Zio. Weapon Casing 17926 | -7/Deep Caves | Lost 5 parts (1n2u2w) 17950 | -7/Deep Caves | Found Zio. Weapon Casing 18045 | -7/Deep Caves | Found Zio. Weapon Casing 18399 | -7/Deep Caves | Build established: Scavenger-Tank 18880 | -7/Deep Caves | Build established: Mutant 20221 | -7/Deep Caves | Crushed by falling debris 20222 | -7/Deep Caves | Core integrity fell below 50% 20548 | -7/Deep Caves | Found Zio. Weapon Casing 20749 | -7/Deep Caves | Discovered new exit (range 6) 21034 | -7/Deep Caves | Spotted as-21779 21049 | -7/Deep Caves | Destroyed as-21779 21157 | -7/Deep Caves | Exposed GOLEM chamber 21171 | -7/Deep Caves | Triggered Deep Caves wall 21197 | -7/Deep Caves | Destroyed AS-55464 21210 | -7/Deep Caves | Spotted AS-94245 21238 | -7/Deep Caves | Core integrity fell below 20% 21246 | -7/Deep Caves | Destroyed 37 combat bots 21258 | -7/Deep Caves | Destroyed by as-92692 with Assembled Gauss Rifle Last Messages --------------- 21223_ as-66544 misfires. 21224_ as-95167 released from Mobile Assembly Unit. 21224_ Penetrated by Slug. 21224_ Destroyed Asb. P-torch. 21224_ as-29885 destroyed. 21225_ as-66544 system terminally corrupted. 21229_ Dropped Huge Storage Unit. 21233_ Penetrated by Slug. 21234_ as-92692 released from Mobile Assembly Unit. 21236_ Penetrated by Slug. 21244_ as-95265 released from Mobile Assembly Unit. 21245_ Penetrated by Slug. 21245_ Zio. Weapon Casing destroyed. 21246_ Penetrated by Slug. 21250_ Critical hit (Destroy). 21250_ Exp. Heat Sink destroyed. 21252_ Penetrated by Slug. 21254_ as-42041 released from Mobile Assembly Unit. 21254_ Slug penetrates as-06409. 21254_ Penetrated by Slug. Map ----- +----------------------------------------------------+ | ????????????????????????????????## | | ?????????????????????????????????# | | ?????????????????????????????????? | | ?????????????????????????????????? | | ?????????????????????????????????? | | ?????????????????????????????????? | | ???????????????????? ????????????? | | ????????????????? ???#???????? | | ????????????? * ??? #??????? | | ??????????? ### #??????? | | ???????? = # ??????? | | ?????? ##?????? | | ???? ##????? | | ??? A * ?????? | | ??? = = #?????? | | ??? ##????? | | ???? #????? | | ????? = = #????? | | ??????? G ] #????# | | ???????##G #?#### | | ??????#"Ga ### | | ??????#GGGa [ ## | | ??????#GG aa [!!* * * ### | | ??????#GGG [!!!! * ### | | ??????#GGGa [!] ## | | ??????###@ [[] ### # | | ????????" * #?### | | ????????" * ##### | | ????????" | | ????????""" ! ** | | ????????" ! | | ????????"" #### | | ????????" #??# | | ????????"" ##??# | | ????????" # # #???## | | ????????" #### ## ## ##????? | | ????????""" ###??# ## ####?????? | | ?????????" ????#### #????????? | | ?????????######????????#?????????? | | | | | | | | | | | | | | | | | | | | | | | +----------------------------------------------------+ Best States ------------- Heat Dissipation 86 Energy Generation 27 Energy Capacity 700 Matter Stores 344 Matter Capacity 500 Sight Range 16 Robot Scan Range 20 Terrain Scan Density 10 Armor Coverage 825 Weapon Shielding 100 Evasion (%) 40 Targeting Accuracy 8 Armor Integrity Analysis 40 Recoil Reduction 4 Offensive Hacking 10 Item Schematics ----------------- Exp. Sensor Array | -8/Materials | Scanalyzed Imp. Particle Charger | -7/Zion | Archive Imp. Shield Generator | -7/Zion | Archive Lrn. Proton Cannon | -7/Zion | Archive Variable Charge Gun | -7/Zion | Archive Plasma Cannon | -7/Zion | Archive 0b10 Decoder Chip [Looter] | -7/Zion | Archive Mak. Salvage Targeting Computer | -7/Zion | Archive Mak. Hover Unit | -7/Zion | Archive Med. Reflective Plating | -7/Zion | Archive Hvy. Flak Cannon | -7/Zion | Archive Mak. Flight Unit | -7/Zion | Archive Force Field | -7/Zion | Archive Energy Filter | -7/Zion | Archive Armor Integrity Analyzer | -7/Zion | Archive Tactical Coordination Suite | -7/Zion | Archive Robot Schematics ------------------ M-14 Sweeper | -7/Zion | Archive L-41 Fighter | -7/Zion | Archive B-36 Bruiser | -7/Zion | Archive X-77 Beamer | -7/Zion | Archive Fabricated ------------ Nothing Alien Tech Used ----------------- None Achievements -------------- None Challenges ------------ None Game ------ Seed AbsorptionDecoderStabilizer Manual? 0 Play Time 03:52:54 Cumulative 125.4 hours Start 2022.12.20 @ 22:36:02 End 2022.12.22 @ 13:14:51 Sessions 7 Manual Loads 0 Difficulty Rogue Special Mode None Game No. 39 Rogue 39 Adventurer 0 Explorer 0 Win Type - Total 1 Types 1/0/0/0/0/0/0/0/0 Lore% 46 Gallery% 52 Achievement% 44 Wizard Run 0 Options --------- ASCII 0 Keyboard 1 Movement Vi Keybinds 0 Fullscreen 1 Font 18/SmallcapsGlow Map View 76x50 Tactical HUD 1 Map Filters NONE Filters NONE Steam 1 RUN: dd1b87da-fb57-4ce1-93f2-8acfa02c46cf